Cogmind - Beta 13 @@@ ROGUE MODE // 2024.04.17 @ 17:39:42 Player: monkeman Result: Destroyed by 6H-9MA(R) with Subdweller Machine Gun Performance ------------- Evolutions (0) 0 Regions Visited (2) 400 Robots Destroyed (27) 135 Value Destroyed (855) 855 Prototype IDs (3) 60 Alien Tech Used (0) 0 Bonus (0) 0 TOTAL SCORE: 1450 Bonus ------- None Cogmind --------- Core Integrity 0/250 Matter 300/300 Energy 160/160 System Corruption 0% Temperature Cool (0) Movement Treading (160) Location -10/Subcaves Parts ------- > --- POWER (1) -------- Light Nuclear Core > --- PROPULSION (2) --- Light Treads Light Treads > --- UTILITY (2) ------ Medium Storage Unit Seismic Detector > --- WEAPON (2) ------- Subdweller Beam Cannon > --- INVENTORY (10) --- Light Treads Light Treads Medium Matter Pod (100) Subdweller Optics Riot Gun Subdweller Beam Cannon Battle Rifle Improved Light Cannon Improved Light Cannon Subdweller Shrapnel Launcher Peak State ------------ > --- POWER ------------ Light Nuclear Core > --- PROPULSION ------- Light Treads Light Treads > --- UTILITY ---------- Medium Storage Unit Subdweller Optics > --- WEAPON ----------- Subdweller Beam Cannon Improved Light Cannon > --- INVENTORY -------- Light Treads Light Treads Medium Matter Pod Seismic Detector Riot Gun Battle Rifle Improved Light Cannon Improved Light Cannon Subdweller Shrapnel Launcher [Rating: 13] Favorites ----------- Power Improved Ion Engine Engine Improved Ion Engine Power Core Light Nuclear Core Propulsion Light Treads Treads Light Treads Leg Aluminum Leg Wheel Wheel Utility Medium Storage Unit Device Seismic Detector Storage Medium Storage Unit Protection Light Armor Plating Weapon Improved Light Cannon Energy Gun Medium Laser Energy Cannon Subdweller Beam Cannon Ballistic Gun Light Assault Rifle Ballistic Cannon Improved Light Cannon Build | -11 -10 -10 ------- Run | Yrd Mat Sub Slots Evolved . | . . . Power . | . . . Propulsion . | . . . Utility . | . . . Weapon . | . . . Parts Attached 23 | 7 9 7 Power 3 | 1 1 1 Engine 2 | 1 1 . Core 1 | . . 1 Reactor . | . . . Propulsion 5 | 3 2 . Treads 2 | . 2 . Leg 2 | 2 . . Wheel 1 | 1 . . Hover . | . . . Flight . | . . . Utility 8 | 1 3 4 Device 4 | . 1 3 Storage 2 | 1 1 . Processor . | . . . Hackware . | . . . Protection 2 | . 1 1 Artifact . | . . . Weapon 7 | 2 3 2 Energy Gun 1 | . 1 . Energy Cannon 2 | . . 2 Ballistic Gun 2 | 2 . . Ballistic Cannon 2 | . 2 . Launcher . | . . . Special Weapon . | . . . Impact Weapon . | . . . Slashing Weapon . | . . . Piercing Weapon . | . . . Special Melee Weapon . | . . . Unidentified Prototypes . | . . . Parts Lost 5 | . 1 4 Power 1 | . . 1 Propulsion . | . . . Utility 2 | . . 2 Weapon 2 | . 1 1 Highest Loss Streak 1 | . 1 1 To Critical Strikes . | . . . Average Slot Usage (%) 98 | . 94 99 Engine 11 | . 14 10 Core 2 | . . 3 Treads 24 | . 16 28 Leg 3 | . 11 . Device 2 | . . 3 Storage 14 | . 14 14 Protection 9 | . 8 10 Energy Cannon 7 | . . 10 Ballistic Gun 2 | . 8 . Ballistic Cannon 17 | . 16 17 Naked Turns . | . . . Heaviest Build 32 | 12 28 32 Greatest Support 40 | 20 40 40 Greatest Overweight (x) 1 | 1 1 . Average Overweight (x) . | . . . Largest Inventory Capacity 10 | 8 10 10 Average Capacity 9 | 7 9 10 Most Carried 10 | 5 10 10 Average Carried 9 | 3 8 9 Final Capacity 10 | 8 10 10 Final Carried 10 | 5 10 10 Class Distribution -------------------- 100% | Mutant Dominant Class ---------------- Mutant | -10/Materials Mutant | -10/Subcaves Resources | -11 -10 -10 ----------- Run | Yrd Mat Sub Matter Collected 1066 | 264 383 419 Remotely . | . . . Salvage Created 962 | . 528 434 Parts 56 | . 27 29 Haulers Intercepted 2 | . 2 . Recyclers Shooed 1 | . 1 . Parts Field Recycled . | . . . Retrieved Matter . | . . . Parts Self-Destructed 15 | . . 15 Prevented . | . . . Kills | -11 -10 -10 ------- Run | Yrd Mat Sub Combat Hostiles Destroyed 21 | . 10 11 Guns 6 | . 6 . Cannons 14 | . 4 10 Classes Destroyed 7 | . 5 2 Hauler 2 | . 2 . Recycler 1 | . 1 . Operator 1 | . 1 . Watcher 2 | . 2 . Swarmer 1 | . . 1 Grunt 12 | . 10 2 Subdweller 8 | . . 8 Best Kill Streak 4 | . 4 3 Combat Bots Only 4 | . 4 3 Max Kills in Single Turn 1 | . 1 1 Gunslinging . | . . . Exploded . | . . . Melee . | . . . Uniques/NPCs Destroyed . | . . . Combat | -11 -10 -10 -------- Run | Yrd Mat Sub Hostile Shots Fired 98 | . 46 52 Missed 23 | . 12 11 Damage Taken 1292 | . 405 887 Core 260 | . 132 128 Absorbed by Shields . | . . . Core Remaining (%) 100 | 100 . . Volleys Fired 119 | . 64 55 Largest 2 | . 2 2 Hottest 119 | . 89 119 Shots Fired 223 | . 127 96 Gun 65 | . 65 . Cannon 158 | . 62 96 Launcher . | . . . Special . | . . . Kinetic 177 | . 111 66 Thermal 46 | . 16 30 Explosive . | . . . Electromagnetic . | . . . Robot Hit Streak 27 | . 11 27 Robot Miss Streak 4 | . 4 2 Penetration Max . | . . . Secondary Targets 1 | . 1 . Max Gunslinging Chain 1 | . 1 . Shots Hit Robots 136 | . 73 63 Core Hits 45 | . 27 18 Critical Kills 2 | . . 2 Critical Parts Destroyed . | . . . Critical Strikes 8 | . 2 6 Burn 2 | . 2 . Meltdown 2 | . . 2 Blast 4 | . . 4 Melee Attacks . | . . . Impact . | . . . Slashing . | . . . Piercing . | . . . Sneak Attacks . | . . . Combat Hostiles . | . . . Follow-up Attacks . | . . . Damage Inflicted 2507 | . 1102 1405 Guns 403 | . 403 . Cannons 2082 | . 677 1405 Explosions . | . . . Melee . | . . . Ramming 22 | . 22 . Kinetic 1978 | . 955 1023 Thermal 507 | . 125 382 Explosive . | . . . Electromagnetic . | . . . Impact . | . . . Slashing . | . . . Piercing . | . . . Highest Corruption . | . . . Average Corruption . | . . . Corruption Purged . | . . . Corruption Blocked . | . . . Overload Shots . | . . . Overflow Damage 33 | . 33 . Projectiles 33 | . 33 . Explosions . | . . . Melee . | . . . Knockbacks 20 | . 12 8 Impact . | . . . Kinetic 18 | . 10 8 Secondary 2 | . 2 . Self-Inflicted Damage . | . . . Shots . | . . . Rammed 2 | . 2 . Targets Rammed 3 | . 3 . Kicked 1 | . 1 . Crushed . | . . . Highest Temperature 219 | . 219 17 Average Temperature 45 | . 58 5 Received Heat Transfer 420 | . 249 171 Siege Activations . | . . . Robots Corrupted . | . . . Combat Hostiles . | . . . Parts Fried . | . . . Impact Corruptions . | . . . Robots Melted 2 | . . 2 Combat Hostiles 2 | . . 2 Parts Melted . | . . . Heat Transferred 1036 | . 518 518 Parts Sabotaged . | . . . Parts Stolen . | . . . Parts Stripped . | . . . Power Chain Reactions . | . . . Alert | -11 -10 -10 ------- Run | Yrd Mat Sub Peak Influence 168 | . 168 . Initial . | . . . Average 56 | . 59 . Maximum Alert Level . | . . . Low Security (%) 100 | 100 100 . Level 1 . | . . . Level 2 . | . . . Level 3 . | . . . Level 4 . | . . . Level 5 . | . . . High Security . | . . . Max Security . | . . . Squads Dispatched 3 | . 3 . Investigation 1 | . 1 . Extermination . | . . . Reinforcement 2 | . 2 . Assault . | . . . Garrison . | . . . Intercept . | . . . Searches Triggered . | . . . Construction Impeded . | . . . Haulers Reinforced . | . . . Active Scanning Responses . | . . . Cargo Convoy Interrupts . | . . . Stealth | -11 -10 -10 --------- Run | Yrd Mat Sub Distress Signals 2 | . 2 . Communications Jammed . | . . . Distress Signals . | . . . Times Spotted 36 | . 22 14 Peak Tracking Total 3 | . 3 2 Tactical Retreats . | . . . Traps | -11 -10 -10 ------- Run | Yrd Mat Sub Traps Triggered 1 | . 1 . Indirectly . | . . . Trap Hack Attempts . | . . . Triggered . | . . . Disarmed . | . . . Reprogrammed . | . . . Reused . | . . . Traps Extracted . | . . . Installed . | . . . Triggered . | . . . Machines | -11 -10 -10 ---------- Run | Yrd Mat Sub Machines Disabled 3 | . 3 . Max in Single Turn 1 | . 1 . Machines Repaired . | . . . Machines Dismantled . | . . . Machines Sabotaged . | . . . Overloaded Fab Kills . | . . . Hacking | -11 -10 -10 --------- Run | Yrd Mat Sub Machines Accessed 5 | . 5 . Terminals 4 | . 4 . Fabricators . | . . . Repair Stations . | . . . Recycling Units 1 | . 1 . Scanalyzers . | . . . Garrison Access . | . . . Total Hacks 10 | . 10 . Successful 6 | . 6 . Failed 3 | . 3 . Catastrophic . | . . . Database Lockouts 1 | . 1 . Manual 4 | . 4 . Terminals 9 | . 9 . Fabricators . | . . . Repair Stations . | . . . Recycling Units 1 | . 1 . Scanalyzers . | . . . Garrison Access . | . . . Terminal Hacks 4 | . 4 . Robot Analysis 1 | . 1 . Prototype ID Bank 2 | . 2 . Locate Traps 1 | . 1 . Fabricator Hacks . | . . . Repair Station Hacks . | . . . Recycling Unit Hacks 1 | . 1 . Report Inventory 1 | . 1 . Scanalyzer . | . . . Garrison Access Hacks . | . . . Unauthorized Hacks 1 | . 1 . Terminals 1 | . 1 . Assimilate 1 | . 1 . Fabricators . | . . . Repair Stations . | . . . Recycling Units . | . . . Scanalyzers . | . . . Garrison Access . | . . . Data Cores Recovered . | . . . Used . | . . . Hacking Detections 5 | . 5 . Full Trace Events . | . . . Feedback Events . | . . . Feedback Blocked . | . . . Robot Schematics Acquired . | . . . Robots Built . | . . . Authchips . | . . . Time . | . . . Total Robot Build Rating . | . . . Part Schematics Acquired . | . . . Parts Built . | . . . Authchips . | . . . Time . | . . . Total Part Build Rating . | . . . Parts Repaired . | . . . Time . | . . . Parts Recycled . | . . . Recycled Matter . | . . . Retrieved Matter . | . . . Retrieved Components . | . . . Parts Scanalyzed . | . . . Part Schematics Acquired . | . . . Parts Damaged . | . . . Bothacking | -11 -10 -10 ------------ Run | Yrd Mat Sub Used RIF Installer . | . . . Robots Hacked . | . . . Non-combat . | . . . Combat . | . . . Robot Hacks Applied . | . . . Relay Couplers Released . | . . . Fabnet Peak Effective % . | . . . Robots Rewired . | . . . Allies Hacked . | . . . Hacks Repelled . | . . . Allies | -11 -10 -10 -------- Run | Yrd Mat Sub Total Allies 1 | . 1 . Largest Group 1 | . 1 . Highest-Rated Group 10 | . 10 . Highest-Rated Ally 10 | . 10 . Total Orders . | . . . Ally Attacks . | . . . Total Damage . | . . . Kills . | . . . Allies Corrupted . | . . . Allies Melted . | . . . Intel | -11 -10 -10 ------- Run | Yrd Mat Sub Robot Analysis Total 1 | . 1 . Derelict Logs Recovered 1 | . . 1 Drone Launches . | . . . Drone Recoveries . | . . . Exploration | -11 -10 -10 ------------- Run | Yrd Mat Sub Turns Passed 3111 | 64 987 2060 Spaces Moved 1715 | 45 524 1146 Core 2 | 2 . . Treads 1448 | . 302 1146 Legs 251 | 29 222 . Wheels 14 | 14 . . Hover . | . . . Flight . | . . . Fastest Speed 50 | 50 120 160 Average Speed 153 | 109 143 160 Slowest Speed 190 | 190 190 160 Overloaded Moves . | . . . Propulsion Burnouts . | . . . Robots Hopped . | . . . Cave-ins Triggered . | . . . Exploration Rate (%) 50 | 4 73 74 Regions Visited 2 Branch Regions 1 Pre-discovered Areas 1 | . . 1 Known Exits Taken . | . . . Unknown Exits Taken 2 | 1 1 . Scrap Searched 12 | . . 12 Spaces Dug . | . . . Terrain Destroyed 3 | . 2 1 Melee . | . . . Projectile 3 | . 2 1 AOE . | . . . Terrain Rammed . | . . . Walls Destroyed . | . . . Machines Disabled . | . . . Actions | -11 -10 -10 --------- Run | Yrd Mat Sub Total 1982 | 56 645 1281 Wait 77 | . 19 58 Move 1713 | 44 523 1146 Hop . | . . . Pick Up 27 | 5 15 7 Fast Attach 10 | 6 2 2 Attach 7 | . 3 4 Detach 1 | . . 1 Swap 6 | 1 4 1 Drop 19 | . 12 7 Fire 119 | . 64 55 Melee . | . . . Ram . | . . . Kick 1 | . 1 . Crush 2 | . 2 . Escape Stasis . | . . . Rewire . | . . . Trap . | . . . Miscellaneous . | . . . Route ------- -11/Scrapyard -10/Materials (discovered 3 exits: [*Mat] / [*Min] / [*Sub]) -10/Subcaves (discovered 2 exits: [*Mat x2]) History --------- Turn | Location | Event 16 | -11/Scrapyard | Discovered new exit (range 15) 65 | -11/Scrapyard | Entered Materials 313 | -10/Materials | Build established: Mutant 598 | -10/Materials | Central database locked down 641 | -10/Materials | Discovered new exit (range 13) 672 | -10/Materials | Core integrity fell below 50% 725 | -10/Materials | Discovered new exit (range 15) 1035 | -10/Materials | Discovered new exit (range 11) 1052 | -10/Materials | Entered Subcaves 1180 | -10/Subcaves | Discovered new exit (range 10) 1188 | -10/Subcaves | Learned location of Storage (-8) 1487 | -10/Subcaves | Core integrity fell below 20% 1591 | -10/Subcaves | Discovered new exit (range 12) 1615 | -10/Subcaves | Shifting Twisted Machinery released Mak. Flight Unit 1616 | -10/Subcaves | Shifting Twisted Machinery released Mak. Sword 1630 | -10/Subcaves | A swath of the cavern ceiling suddenly collapsed 1725 | -10/Subcaves | A swath of the cavern ceiling suddenly collapsed 2805 | -10/Subcaves | Shifting Twisted Machinery released Sub. Beam Cannon 2814 | -10/Subcaves | Shifting Twisted Machinery released Sub. Monowheel 3112 | -10/Subcaves | Visited 4L-MR0's lab 3112 | -10/Subcaves | Destroyed by 6H-9MA(R) with Subdweller Machine Gun Last Messages --------------- 02862_ Dropped Broken Sub. Optics. 02911_ 9S-PYP(R) destroyed. 02912_ U7-XPE(O) collects matter. 02915_ JM-ONC(R) suffers critical hit (Meltdown). 02917_ U7-XPE(O) collects matter. 02925_ UZ-RWO(R) destroyed. 02928_ U7-XPE(O) knocked back. 02931_ U7-XPE(O) puts together Shrapnel Trap. 02933_ Acquired Sub. Optics. 03005_ 1P-MXL(u) tweaks Twisted Machinery. 03098_ Searching scrap... 03098_ Found Flamer. 03098_ Found 29 Matter. 03099_ Acquired 29 matter. 03100_ Searching scrap... 03100_ Found Sub. Machine Gun. 03100_ Found 26 Matter. 03101_ Acquired 21 matter. 03111_ Imp. Light Cannon destroyed. Map ----- +----------------------------------------------------+ | ?????????????????## ##??????????? | | ??????????????????# ##??????????? | | ????????????????###" #??????????? | | ???????????????##"" #??????????? | | ??????????????##"" ###?#???????? | | ??????????????#""" #"###?????? | | ??????????????# """#?????? | | ??????????????# ##?????? | | ??????????????# # ### #??????? | | ??????????????## ##?? #?????? | | ???????????????## #???? ????? | | ???????????????## ##????? ??? | | ???????????????# #???????## ##?? | | ??????????##???# ##?????????#??? | | ?????##??? "##?## ##???????????? | | ????? *???# ""?## ###?????????? | | ?????""##?#" ?# #?????????? | | ?????# ##" ###" ## ???? | | ?????" RR#?# # #? | | ?????"" #?# #?? ###### ? | | ??????X #?# #?? ?????????? | | ??????"R #?# #" #??? #???? | | ??????? #### ## #????#???? | | ??????? ##"| # #????????? | | ???????#/## ## #??????????#### | | ???????#@##%[ "## #?????????????? | | ???????# <<[ "##? ?????????????? | | ???????# <<##?? ?????????????? | | ???????#######???# ????????????? | | ?????????????????? ????????????? | | ?????????????????? ???????????? | | ?????????????????? ???????????? | | ??????????????????? ???????????? | | ??????????????????? ????????????? | | ????????????????????????????????? | | ????????????????????????????????? | | ????????????????????????????????? | | ????????????????????????????????? | | ????????????????????????????????? | | ????????????????????????????????? | | ????????????????????????????????? | | ????????????????????????????????? | | ????????????????????????????????? | | ????????????????????????????????? | | ????????????????????????????????? | | ????????????????????????????????? | | ????????????????????????????????? | | ????????????????????????????????? | | ????????????????????????????????? | | ????????????????????????????????? | +----------------------------------------------------+ Best States ------------- Heat Dissipation 47 Energy Generation 14 Energy Capacity 265 Matter Stores 300 Matter Capacity 300 Sight Range 21 Terrain Scan Density 10 Armor Coverage 150 Evasion (%) 55 Recoil Reduction 2 Item Schematics ----------------- None Robot Schematics ------------------ None Fabricated ------------ Nothing Alien Tech Used ----------------- None Achievements -------------- None Challenges ------------ None Game ------ Seed GravmagClaymoresCleaver Manual? 0 Play Time 00:17:04 Cumulative 32.0 hours Start 2024.04.17 @ 17:23:37 End 2024.04.17 @ 17:39:42 Sessions 1 Manual Loads 0 Difficulty Rogue Special Mode None Game No. 39 Rogue 39 Adventurer 0 Explorer 0 Win Type - Total 1 Types 1/0/0/0/0/0/0/0/0 Lore% 19 Gallery% 36 Achievement% 26 Wizard Run 0 Options --------- Layout 1 ASCII 0 Keyboard 0 Movement Mouse Keybinds 0 Fullscreen 1 Font 24/Smallcaps Map View 50x35 Zoom Use 0% Tactical HUD 1 Map Filters NONE Filters NONE Steam 1 RUN: 6e704f24-49db-40bd-9793-49b13e7d9b97